[Event "December 5 Early 2023"]
[Site "https://www.chess.com"]
[Date "2023.12.05"]
[Round "4"]
[White "Erzhanov, Arman"]
[Black "Wagh Suyog"]
[Result "0-1"]
[Board "67"]
[TimeControl "180+1"]
[WhiteFideId "4138821"]
[BlackFideId "25071688"]
[WhiteElo "2550"]
[BlackElo "2759"]
[WhiteTeam "KAZ"]
[BlackTeam "IND"]
[WhiteClock "0:00:28"]
[BlackClock "0:00:16"]

1. e4 {[%clk 0:02:51]}  e5 {[%clk 0:02:48]} 2. Nf3 {[%clk 0:02:51]}  Nc6 {[%clk 0:02:48]} 3. Bb5 {[%clk 0:02:51]}  a6 {[%clk 0:02:48]} 4. Bxc6 {[%clk 0:02:51]}  dxc6 {[%clk 0:02:48]} 5. O-O {[%clk 0:02:51]}  f6 {[%clk 0:02:48]} 6. d4 {[%clk 0:02:50]}  exd4 {[%clk 0:02:48]} 7. Nxd4 {[%clk 0:02:51]}  c5 {[%clk 0:02:48]} 8. Ne2 {[%clk 0:02:51]}  Qxd1 {[%clk 0:02:48]} 9. Rxd1 {[%clk 0:02:51]}  Bd7 {[%clk 0:02:49]} 10. Be3 {[%clk 0:02:51]}  O-O-O {[%clk 0:02:49]} 11. Nbc3 {[%clk 0:02:51]}  b6 {[%clk 0:02:49]} 12. Rd2 {[%clk 0:02:50]}  Bd6 {[%clk 0:02:43]} 13. Bf4 {[%clk 0:02:50]}  Bxf4 {[%clk 0:02:40]} 14. Nxf4 {[%clk 0:02:51]}  Ne7 {[%clk 0:02:41]} 15. Rad1 {[%clk 0:02:51]}  Rhe8 {[%clk 0:02:27]} 16. f3 {[%clk 0:02:48]}  a5 {[%clk 0:02:21]} 17. a4 {[%clk 0:02:43]}  Nc6 {[%clk 0:02:13]} 18. Nb5 {[%clk 0:02:34]}  Ne5 {[%clk 0:02:02]} 19. b3 {[%clk 0:02:19]}  Bxb5 {[%clk 0:00:34]} 20. axb5 {[%clk 0:02:20]}  Rxd2 {[%clk 0:00:33]} 21. Rxd2 {[%clk 0:02:21]}  Nf7 {[%clk 0:00:32]} 22. Nd5 {[%clk 0:02:20]}  Kb7 {[%clk 0:00:30]} 23. c4 {[%clk 0:02:17]}  Nd6 {[%clk 0:00:28]} 24. Nc3 {[%clk 0:02:14]}  f5 {[%clk 0:00:22]} 25. exf5 {[%clk 0:02:00]}  Re3 {[%clk 0:00:23]} 26. Rc2 {[%clk 0:01:45]}  Nxf5 {[%clk 0:00:23]} 27. Kf2 {[%clk 0:01:45]}  Rd3 {[%clk 0:00:21]} 28. Ke2 {[%clk 0:01:43]}  Re3+ {[%clk 0:00:21]} 29. Kf2 {[%clk 0:01:43]}  Rd3 {[%clk 0:00:21]} 30. Ke2 {[%clk 0:01:43]}  Rd7 {[%clk 0:00:21]} 31. Kf2 {[%clk 0:01:41]}  c6 {[%clk 0:00:19]} 32. bxc6+ {[%clk 0:01:40]}  Kxc6 {[%clk 0:00:20]} 33. Ne4 {[%clk 0:01:20]}  Rd3 {[%clk 0:00:15]} 34. Rb2 {[%clk 0:00:57]}  Nd4 {[%clk 0:00:14]} 35. Nd2 {[%clk 0:00:56]}  b5 {[%clk 0:00:10]} 36. h4 {[%clk 0:00:41]}  b4 {[%clk 0:00:08]} 37. h5 {[%clk 0:00:41]}  h6 {[%clk 0:00:06]} 38. Ke1 {[%clk 0:00:38]}  Re3+ {[%clk 0:00:04]} 39. Kd1 {[%clk 0:00:37]}  Rd3 {[%clk 0:00:04]} 40. Kc1 {[%clk 0:00:37]}  Nf5 {[%clk 0:00:04]} 41. Ra2 {[%clk 0:00:29]}  Kb6 {[%clk 0:00:04]} 42. g4 {[%clk 0:00:25]}  Ne3 {[%clk 0:00:04]} 43. Rb2 {[%clk 0:00:21]}  Rc3+ {[%clk 0:00:04]} 44. Kb1 {[%clk 0:00:20]}  Rd3 {[%clk 0:00:04]} 45. Ka2 {[%clk 0:00:20]}  Nd1 {[%clk 0:00:04]} 46. Rc2 {[%clk 0:00:21]}  Nc3+ {[%clk 0:00:04]} 47. Kb2 {[%clk 0:00:21]}  Kc6 {[%clk 0:00:04]} 48. f4 {[%clk 0:00:21]}  Rd4 {[%clk 0:00:04]} 49. g5 {[%clk 0:00:19]}  Rxf4 {[%clk 0:00:04]} 50. gxh6 {[%clk 0:00:20]}  gxh6 {[%clk 0:00:05]} 51. Nb1 {[%clk 0:00:20]}  Ne4 {[%clk 0:00:03]} 52. Re2 {[%clk 0:00:19]}  Rf2 {[%clk 0:00:04]} 53. Rxf2 {[%clk 0:00:19]}  Nxf2 {[%clk 0:00:05]} 54. Nd2 {[%clk 0:00:19]}  Ng4 {[%clk 0:00:05]} 55. Ne4 {[%clk 0:00:16]}  Ne5 {[%clk 0:00:04]} 56. Nf6 {[%clk 0:00:15]}  Nf7 {[%clk 0:00:04]} 57. Ng4 {[%clk 0:00:15]}  Kd6 {[%clk 0:00:05]} 58. Kc2 {[%clk 0:00:16]}  Ke6 {[%clk 0:00:05]} 59. Kd3 {[%clk 0:00:16]}  Kf5 {[%clk 0:00:06]} 60. Nf2 {[%clk 0:00:17]}  Ne5+ {[%clk 0:00:05]} 61. Ke3 {[%clk 0:00:17]}  Ng4+ {[%clk 0:00:04]} 62. Kf3 {[%clk 0:00:17]}  Nxf2 {[%clk 0:00:04]} 63. Kxf2 {[%clk 0:00:18]}  Kg4 {[%clk 0:00:04]} 64. Ke3 {[%clk 0:00:19]}  Kxh5 {[%clk 0:00:04]} 65. Ke4 {[%clk 0:00:20]}  Kg5 {[%clk 0:00:04]} 66. Kd5 {[%clk 0:00:20]}  a4 {[%clk 0:00:04]} 67. Kxc5 {[%clk 0:00:21]}  axb3 {[%clk 0:00:05]} 68. Kxb4 {[%clk 0:00:22]}  b2 {[%clk 0:00:05]} 69. c5 {[%clk 0:00:22]}  b1=Q+ {[%clk 0:00:06]} 70. Kc4 {[%clk 0:00:22]}  Qc1+ {[%clk 0:00:07]} 71. Kd5 {[%clk 0:00:23]}  h5 {[%clk 0:00:08]} 72. Kd6 {[%clk 0:00:24]}  h4 {[%clk 0:00:09]} 73. c6 {[%clk 0:00:25]}  h3 {[%clk 0:00:09]} 74. c7 {[%clk 0:00:26]}  Qxc7+ {[%clk 0:00:09]} 75. Kxc7 {[%clk 0:00:24]}  h2 {[%clk 0:00:10]} 76. Kd6 {[%clk 0:00:25]}  h1=Q {[%clk 0:00:11]} 77. Ke5 {[%clk 0:00:26]}  Qe1+ {[%clk 0:00:12]} 78. Kd4 {[%clk 0:00:27]}  Kf4 {[%clk 0:00:12]} 79. Kd3 {[%clk 0:00:27]}  Qd1+ {[%clk 0:00:13]} 80. Kc4 {[%clk 0:00:28]}  Ke4 {[%clk 0:00:13]} 81. Kb4 {[%clk 0:00:28]}  Qc1 {[%clk 0:00:13]} 82. Kb5 {[%clk 0:00:28]}  Kd5 {[%clk 0:00:14]} 83. Kb6 {[%clk 0:00:29]}  Qc6+ {[%clk 0:00:14]} 84. Ka7 {[%clk 0:00:29]}  Qb5 {[%clk 0:00:14]} 85. Ka8 {[%clk 0:00:28]}  Kc6 {[%clk 0:00:15]} 86. Ka7 {[%clk 0:00:28]}  Qb7# {[%clk 0:00:16]} 0-1

[Event "December 5 Early 2023"]
[Site "https://www.chess.com"]
[Date "2023.12.05"]
[Round "4"]
[White "Shuvalov, Evgenij"]
[Black "Atakhan, Abtin"]
[Result "1-0"]
[Board "69"]
[TimeControl "180+1"]
[WhiteFideId "4187237"]
[BlackFideId "22502203"]
[WhiteElo "2549"]
[BlackElo "2738"]
[WhiteTeam "FID"]
[BlackTeam "IRI"]
[WhiteClock "0:00:11"]
[BlackClock "0:00:00"]

1. d4 {[%clk 0:01:49]}  Nf6 {[%clk 0:02:59]} 2. c4 {[%clk 0:01:49]}  g6 {[%clk 0:03:00]} 3. Nc3 {[%clk 0:01:50]}  d5 {[%clk 0:03:00]} 4. cxd5 {[%clk 0:01:49]}  Nxd5 {[%clk 0:03:01]} 5. e4 {[%clk 0:01:50]}  Nxc3 {[%clk 0:03:02]} 6. bxc3 {[%clk 0:01:50]}  Bg7 {[%clk 0:03:03]} 7. Nf3 {[%clk 0:01:51]}  c5 {[%clk 0:03:03]} 8. Bb5+ {[%clk 0:01:50]}  Nd7 {[%clk 0:02:58]} 9. O-O {[%clk 0:01:49]}  O-O {[%clk 0:02:59]} 10. Be3 {[%clk 0:01:47]}  Qc7 {[%clk 0:02:54]} 11. Rc1 {[%clk 0:01:46]}  b6 {[%clk 0:02:54]} 12. d5 {[%clk 0:01:45]}  Bb7 {[%clk 0:02:52]} 13. c4 {[%clk 0:01:44]}  a6 {[%clk 0:02:46]} 14. Ba4 {[%clk 0:01:44]}  Rad8 {[%clk 0:02:44]} 15. Nd2 {[%clk 0:01:41]}  Ne5 {[%clk 0:02:39]} 16. Qe2 {[%clk 0:01:40]}  e6 {[%clk 0:02:33]} 17. f4 {[%clk 0:01:37]}  Nd7 {[%clk 0:02:30]} 18. dxe6 {[%clk 0:01:23]}  fxe6 {[%clk 0:02:30]} 19. e5 {[%clk 0:01:23]}  g5 {[%clk 0:02:25]} 20. Qg4 {[%clk 0:01:16]}  Rde8 {[%clk 0:01:57]} 21. Qxg5 {[%clk 0:01:13]}  Kh8 {[%clk 0:01:54]} 22. Bc2 {[%clk 0:01:11]}  Rg8 {[%clk 0:01:43]} 23. Qh5 {[%clk 0:01:11]}  Bh6 {[%clk 0:01:14]} 24. g3 {[%clk 0:01:01]}  Kg7 {[%clk 0:01:02]} 25. Be4 {[%clk 0:00:49]}  Nf8 {[%clk 0:00:55]} 26. Qxe8 {[%clk 0:00:43]}  Bc8 {[%clk 0:00:37]} 27. Qh5 {[%clk 0:00:41]}  Ng6 {[%clk 0:00:37]} 28. Nf3 {[%clk 0:00:37]}  Rf8 {[%clk 0:00:33]} 29. Rfd1 {[%clk 0:00:28]}  Bb7 {[%clk 0:00:34]} 30. Bxb7 {[%clk 0:00:27]}  Qxb7 {[%clk 0:00:35]} 31. Ng5 {[%clk 0:00:25]}  Bxg5 {[%clk 0:00:34]} 32. Qxg5 {[%clk 0:00:26]}  Rf5 {[%clk 0:00:33]} 33. Qd8 {[%clk 0:00:25]}  Rf7 {[%clk 0:00:31]} 34. Qd2 {[%clk 0:00:18]}  Qe4 {[%clk 0:00:28]} 35. Qf2 {[%clk 0:00:18]}  h5 {[%clk 0:00:28]} 36. Re1 {[%clk 0:00:17]}  Qf5 {[%clk 0:00:25]} 37. Qg2 {[%clk 0:00:17]}  Qd3 {[%clk 0:00:24]} 38. Bf2 {[%clk 0:00:16]}  h4 {[%clk 0:00:23]} 39. Red1 {[%clk 0:00:16]}  Qf5 {[%clk 0:00:20]} 40. Qf3 {[%clk 0:00:15]}  Nxe5 {[%clk 0:00:19]} 41. Qc3 {[%clk 0:00:15]}  Kh7 {[%clk 0:00:15]} 42. Qxe5 {[%clk 0:00:15]}  Qg4 {[%clk 0:00:16]} 43. Qe1 {[%clk 0:00:15]}  Qf3 {[%clk 0:00:14]} 44. Qf1 {[%clk 0:00:14]}  Rg7 {[%clk 0:00:12]} 45. Qg2 {[%clk 0:00:14]}  Qe2 {[%clk 0:00:12]} 46. Re1 {[%clk 0:00:13]}  Qb2 {[%clk 0:00:13]} 47. Rcd1 {[%clk 0:00:13]}  Rg6 {[%clk 0:00:10]} 48. Re5 {[%clk 0:00:12]}  Qc2 {[%clk 0:00:09]} 49. Rd7+ {[%clk 0:00:12]}  Kh8 {[%clk 0:00:00]} 50. Rh5+ {[%clk 0:00:11]} 1-0

[Event "December 5 Early 2023"]
[Site "https://www.chess.com"]
[Date "2023.12.05"]
[Round "4"]
[White "Sahakyan, Aleks"]
[Black "Rangel, Daniel"]
[Result "1-0"]
[Board "72"]
[TimeControl "180+1"]
[WhiteFideId "13316338"]
[BlackFideId "2124475"]
[WhiteElo "2725"]
[BlackElo "2544"]
[WhiteTeam "ARM"]
[BlackTeam "BRA"]
[WhiteClock "0:00:05"]
[BlackClock "0:00:03"]

1. e4 {[%clk 0:02:59]}  e5 {[%clk 0:02:59]} 2. Nf3 {[%clk 0:02:59]}  Nc6 {[%clk 0:02:59]} 3. Bb5 {[%clk 0:02:59]}  a6 {[%clk 0:03:00]} 4. Ba4 {[%clk 0:03:00]}  d6 {[%clk 0:03:00]} 5. O-O {[%clk 0:02:59]}  Bd7 {[%clk 0:03:01]} 6. c3 {[%clk 0:02:56]}  g6 {[%clk 0:03:01]} 7. d4 {[%clk 0:02:54]}  Bg7 {[%clk 0:03:01]} 8. Bg5 {[%clk 0:02:52]}  f6 {[%clk 0:02:54]} 9. Be3 {[%clk 0:02:53]}  h6 {[%clk 0:02:51]} 10. Nbd2 {[%clk 0:02:46]}  Nge7 {[%clk 0:02:42]} 11. Bb3 {[%clk 0:02:43]}  Na5 {[%clk 0:02:39]} 12. Bc2 {[%clk 0:02:37]}  O-O {[%clk 0:02:35]} 13. d5 {[%clk 0:02:37]}  b6 {[%clk 0:02:25]} 14. b4 {[%clk 0:02:36]}  Nb7 {[%clk 0:02:25]} 15. Ne1 {[%clk 0:02:33]}  f5 {[%clk 0:02:20]} 16. f3 {[%clk 0:02:34]}  f4 {[%clk 0:02:20]} 17. Bf2 {[%clk 0:02:34]}  g5 {[%clk 0:02:19]} 18. Nd3 {[%clk 0:02:30]}  h5 {[%clk 0:02:15]} 19. c4 {[%clk 0:02:30]}  Ng6 {[%clk 0:02:00]} 20. c5 {[%clk 0:02:30]}  bxc5 {[%clk 0:01:49]} 21. bxc5 {[%clk 0:02:31]}  dxc5 {[%clk 0:01:48]} 22. Nxc5 {[%clk 0:02:31]}  Nxc5 {[%clk 0:01:45]} 23. Bxc5 {[%clk 0:02:31]}  Rf6 {[%clk 0:01:42]} 24. Bb3 {[%clk 0:02:29]}  Kh7 {[%clk 0:01:41]} 25. Nc4 {[%clk 0:02:09]}  g4 {[%clk 0:01:39]} 26. Rc1 {[%clk 0:01:22]}  g3 {[%clk 0:01:35]} 27. Ba4 {[%clk 0:00:58]}  gxh2+ {[%clk 0:01:19]} 28. Kh1 {[%clk 0:00:57]}  Bb5 {[%clk 0:01:19]} 29. Rf2 {[%clk 0:00:48]}  Bf8 {[%clk 0:00:44]} 30. Na5 {[%clk 0:00:39]}  Bd6 {[%clk 0:00:30]} 31. Rfc2 {[%clk 0:00:38]}  Qg8 {[%clk 0:00:28]} 32. Nb7 {[%clk 0:00:31]}  Nh4 {[%clk 0:00:23]} 33. Bxb5 {[%clk 0:00:24]}  axb5 {[%clk 0:00:18]} 34. Qe1 {[%clk 0:00:22]}  Qg5 {[%clk 0:00:15]} 35. Qf2 {[%clk 0:00:04]}  Rg6 {[%clk 0:00:13]} 36. Bxd6 {[%clk 0:00:03]}  cxd6 {[%clk 0:00:14]} 37. Rc8 {[%clk 0:00:01]}  Rxc8 {[%clk 0:00:11]} 38. Rxc8 {[%clk 0:00:02]}  Nxg2 {[%clk 0:00:10]} 39. Rc7+ {[%clk 0:00:02]}  Kh6 {[%clk 0:00:10]} 40. Nxd6 {[%clk 0:00:03]}  Qf6 {[%clk 0:00:04]} 41. Nf5+ {[%clk 0:00:01]}  Qxf5 {[%clk 0:00:02]} 42. exf5 {[%clk 0:00:02]}  Rg5 {[%clk 0:00:02]} 43. Qxg2 {[%clk 0:00:03]}  Rxg2 {[%clk 0:00:02]} 44. Kxg2 {[%clk 0:00:04]}  h1=Q+ {[%clk 0:00:03]} 45. Kxh1 {[%clk 0:00:04]}  Kg5 {[%clk 0:00:03]} 46. d6 {[%clk 0:00:04]}  Kf6 {[%clk 0:00:04]} 47. d7 {[%clk 0:00:05]}  e4 {[%clk 0:00:03]} 48. d8=Q+ {[%clk 0:00:05]} 1-0

[Event "December 5 Early 2023"]
[Site "https://www.chess.com"]
[Date "2023.12.05"]
[Round "4"]
[White "Tifferet, Shakked"]
[Black "Pourramezanali, Amirreza"]
[Result "1-0"]
[Board "73"]
[TimeControl "180+1"]
[WhiteFideId "2811529"]
[BlackFideId "12511412"]
[WhiteElo "2544"]
[BlackElo "2719"]
[WhiteTeam "ISR"]
[BlackTeam "IRI"]
[WhiteClock "0:00:06"]
[BlackClock "0:00:09"]

1. e4 {[%clk 0:02:56]}  e6 {[%clk 0:02:59]} 2. b3 {[%clk 0:02:55]}  d5 {[%clk 0:03:00]} 3. Bb2 {[%clk 0:02:55]}  dxe4 {[%clk 0:03:00]} 4. Nc3 {[%clk 0:02:55]}  Nf6 {[%clk 0:03:00]} 5. Qe2 {[%clk 0:02:56]}  Nc6 {[%clk 0:02:58]} 6. Nxe4 {[%clk 0:02:54]}  Be7 {[%clk 0:02:56]} 7. O-O-O {[%clk 0:02:51]}  a5 {[%clk 0:02:55]} 8. g4 {[%clk 0:02:47]}  a4 {[%clk 0:02:55]} 9. g5 {[%clk 0:02:44]}  Nxe4 {[%clk 0:02:55]} 10. Qxe4 {[%clk 0:02:45]}  Bxg5 {[%clk 0:02:54]} 11. Bxg7 {[%clk 0:02:43]}  Bf6 {[%clk 0:02:30]} 12. Bxh8 {[%clk 0:02:37]}  Bxh8 {[%clk 0:02:30]} 13. bxa4 {[%clk 0:02:21]}  Qd6 {[%clk 0:02:23]} 14. Qd3 {[%clk 0:01:48]}  Qe5 {[%clk 0:02:18]} 15. Qc3 {[%clk 0:01:46]}  Nd4 {[%clk 0:02:06]} 16. Ne2 {[%clk 0:01:04]}  Qd5 {[%clk 0:01:58]} 17. Nxd4 {[%clk 0:00:54]}  Bxd4 {[%clk 0:01:59]} 18. Bg2 {[%clk 0:00:51]}  Qd6 {[%clk 0:01:39]} 19. Qb3 {[%clk 0:00:47]}  Bd7 {[%clk 0:01:39]} 20. c3 {[%clk 0:00:43]}  Bxf2 {[%clk 0:01:33]} 21. Rhf1 {[%clk 0:00:34]}  Bc5 {[%clk 0:01:27]} 22. Qxb7 {[%clk 0:00:20]}  Ra7 {[%clk 0:01:01]} 23. Qb8+ {[%clk 0:00:19]}  Ke7 {[%clk 0:01:01]} 24. d4 {[%clk 0:00:20]}  Ba3+ {[%clk 0:01:00]} 25. Kb1 {[%clk 0:00:20]}  Qb6+ {[%clk 0:00:56]} 26. Qxb6 {[%clk 0:00:19]}  cxb6 {[%clk 0:00:57]} 27. d5 {[%clk 0:00:17]}  Bxa4 {[%clk 0:00:56]} 28. Rde1 {[%clk 0:00:18]}  Bb5 {[%clk 0:00:52]} 29. Rf4 {[%clk 0:00:16]}  Bd3+ {[%clk 0:00:52]} 30. Ka1 {[%clk 0:00:16]}  Bd6 {[%clk 0:00:50]} 31. Rd4 {[%clk 0:00:16]}  Bg6 {[%clk 0:00:45]} 32. dxe6 {[%clk 0:00:16]}  fxe6 {[%clk 0:00:45]} 33. Be4 {[%clk 0:00:16]}  Bf7 {[%clk 0:00:45]} 34. Bxh7 {[%clk 0:00:16]}  Bxh2 {[%clk 0:00:45]} 35. Rd2 {[%clk 0:00:15]}  Bd6 {[%clk 0:00:41]} 36. Rde2 {[%clk 0:00:14]}  Ra5 {[%clk 0:00:38]} 37. Kb1 {[%clk 0:00:13]}  Rc5 {[%clk 0:00:37]} 38. Rb2 {[%clk 0:00:14]}  Bc7 {[%clk 0:00:33]} 39. Re3 {[%clk 0:00:12]}  Rh5 {[%clk 0:00:30]} 40. Be4 {[%clk 0:00:11]}  Rg5 {[%clk 0:00:29]} 41. a3 {[%clk 0:00:11]}  Rg1+ {[%clk 0:00:28]} 42. Kc2 {[%clk 0:00:12]}  Bf4 {[%clk 0:00:28]} 43. Re2 {[%clk 0:00:12]}  e5 {[%clk 0:00:26]} 44. Rxb6 {[%clk 0:00:11]}  Bc4 {[%clk 0:00:26]} 45. Rg2 {[%clk 0:00:10]}  Ra1 {[%clk 0:00:19]} 46. Rg7+ {[%clk 0:00:09]}  Kf8 {[%clk 0:00:20]} 47. Rh7 {[%clk 0:00:07]}  Ra2+ {[%clk 0:00:18]} 48. Rb2 {[%clk 0:00:08]}  Rxb2+ {[%clk 0:00:13]} 49. Kxb2 {[%clk 0:00:09]}  Ke8 {[%clk 0:00:14]} 50. a4 {[%clk 0:00:09]}  Kd8 {[%clk 0:00:14]} 51. a5 {[%clk 0:00:08]}  Be3 {[%clk 0:00:14]} 52. Rg7 {[%clk 0:00:07]}  Kc8 {[%clk 0:00:13]} 53. Ka3 {[%clk 0:00:07]}  Bc5+ {[%clk 0:00:13]} 54. Ka4 {[%clk 0:00:07]}  Kb8 {[%clk 0:00:13]} 55. Rh7 {[%clk 0:00:06]}  Be2 {[%clk 0:00:13]} 56. Rb7+ {[%clk 0:00:06]}  Kc8 {[%clk 0:00:13]} 57. Rg7 {[%clk 0:00:05]}  Kb8 {[%clk 0:00:13]} 58. Kb3 {[%clk 0:00:06]}  Ba6 {[%clk 0:00:13]} 59. c4 {[%clk 0:00:06]}  Bd4 {[%clk 0:00:13]} 60. Rh7 {[%clk 0:00:06]}  Kc8 {[%clk 0:00:13]} 61. Kb4 {[%clk 0:00:07]}  Kb8 {[%clk 0:00:13]} 62. c5 {[%clk 0:00:07]}  Be3 {[%clk 0:00:13]} 63. c6 {[%clk 0:00:07]}  Bd2+ {[%clk 0:00:12]} 64. Kc5 {[%clk 0:00:07]}  Bxa5 {[%clk 0:00:13]} 65. c7+ {[%clk 0:00:06]}  Bxc7 {[%clk 0:00:13]} 66. Rh8+ {[%clk 0:00:05]}  Bc8 {[%clk 0:00:13]} 67. Bf5 {[%clk 0:00:05]}  Ka7 {[%clk 0:00:13]} 68. Rxc8 {[%clk 0:00:04]}  Kb7 {[%clk 0:00:13]} 69. Re8 {[%clk 0:00:04]}  Bb6+ {[%clk 0:00:14]} 70. Kb5 {[%clk 0:00:03]}  Bd4 {[%clk 0:00:15]} 71. Re7+ {[%clk 0:00:03]}  Kb8 {[%clk 0:00:15]} 72. Re6 {[%clk 0:00:04]}  Kc7 {[%clk 0:00:15]} 73. Rc6+ {[%clk 0:00:05]}  Kd8 {[%clk 0:00:15]} 74. Kc4 {[%clk 0:00:05]}  Ke7 {[%clk 0:00:16]} 75. Kd5 {[%clk 0:00:06]}  Kf7 {[%clk 0:00:16]} 76. Be4 {[%clk 0:00:07]}  Ke7 {[%clk 0:00:16]} 77. Re6+ {[%clk 0:00:08]}  Kf7 {[%clk 0:00:16]} 78. Rg6 {[%clk 0:00:09]}  Ke7 {[%clk 0:00:16]} 79. Rg4 {[%clk 0:00:10]}  Kf6 {[%clk 0:00:17]} 80. Rg2 {[%clk 0:00:11]}  Ke7 {[%clk 0:00:17]} 81. Rg6 {[%clk 0:00:10]}  Kf7 {[%clk 0:00:17]} 82. Ra6 {[%clk 0:00:11]}  Ke7 {[%clk 0:00:18]} 83. Ra5 {[%clk 0:00:10]}  Kf7 {[%clk 0:00:18]} 84. Rb5 {[%clk 0:00:10]}  Kf6 {[%clk 0:00:19]} 85. Kd6 {[%clk 0:00:10]}  Kg5 {[%clk 0:00:19]} 86. Rb8 {[%clk 0:00:10]}  Kf4 {[%clk 0:00:19]} 87. Kd5 {[%clk 0:00:10]}  Ke3 {[%clk 0:00:19]} 88. Rf8 {[%clk 0:00:10]}  Kd2 {[%clk 0:00:19]} 89. Rf3 {[%clk 0:00:11]}  Ke2 {[%clk 0:00:19]} 90. Kc4 {[%clk 0:00:11]}  Kd2 {[%clk 0:00:19]} 91. Rd3+ {[%clk 0:00:11]}  Ke2 {[%clk 0:00:20]} 92. Bf3+ {[%clk 0:00:11]}  Kf2 {[%clk 0:00:20]} 93. Kd5 {[%clk 0:00:11]}  Kg3 {[%clk 0:00:18]} 94. Ke4 {[%clk 0:00:11]}  Kh4 {[%clk 0:00:18]} 95. Rd2 {[%clk 0:00:11]}  Kg5 {[%clk 0:00:19]} 96. Rg2+ {[%clk 0:00:09]}  Kf6 {[%clk 0:00:19]} 97. Bh5 {[%clk 0:00:09]}  Ke6 {[%clk 0:00:17]} 98. Rg6+ {[%clk 0:00:10]}  Kd7 {[%clk 0:00:18]} 99. Kd5 {[%clk 0:00:10]}  Kc7 {[%clk 0:00:18]} 100. Be2 {[%clk 0:00:08]}  Kb7 {[%clk 0:00:18]} 101. Bb5 {[%clk 0:00:08]}  Kc7 {[%clk 0:00:18]} 102. Bc6 {[%clk 0:00:08]}  Kb6 {[%clk 0:00:18]} 103. Rg7 {[%clk 0:00:08]}  Ka6 {[%clk 0:00:16]} 104. Rb7 {[%clk 0:00:08]}  Ka5 {[%clk 0:00:17]} 105. Rb1 {[%clk 0:00:08]}  Ka6 {[%clk 0:00:17]} 106. Kd6 {[%clk 0:00:07]}  Ka5 {[%clk 0:00:12]} 107. Rb5+ {[%clk 0:00:06]}  Ka4 {[%clk 0:00:12]} 108. Rxe5+ {[%clk 0:00:05]}  Kb4 {[%clk 0:00:13]} 109. Rd5 {[%clk 0:00:06]}  Kc3 {[%clk 0:00:14]} 110. Ke6 {[%clk 0:00:05]}  Kd3 {[%clk 0:00:13]} 111. Bd7 {[%clk 0:00:06]}  Ke3 {[%clk 0:00:14]} 112. Be8 {[%clk 0:00:07]}  Kd3 {[%clk 0:00:14]} 113. Bf7 {[%clk 0:00:08]}  Ke3 {[%clk 0:00:14]} 114. Kd6 {[%clk 0:00:09]}  Kd3 {[%clk 0:00:14]} 115. Be6 {[%clk 0:00:10]}  Ke3 {[%clk 0:00:14]} 116. Kc6 {[%clk 0:00:10]}  Kd3 {[%clk 0:00:15]} 117. Rd7 {[%clk 0:00:11]}  Ke4 {[%clk 0:00:14]} 118. Bd5+ {[%clk 0:00:11]}  Ke5 {[%clk 0:00:14]} 119. Bc4 {[%clk 0:00:11]}  Ke4 {[%clk 0:00:15]} 120. Rd5 {[%clk 0:00:11]}  Ke3 {[%clk 0:00:15]} 121. Kd6 {[%clk 0:00:11]}  Ke4 {[%clk 0:00:15]} 122. Ke6 {[%clk 0:00:12]}  Be3 {[%clk 0:00:14]} 123. Rf5 {[%clk 0:00:12]}  Bd4 {[%clk 0:00:14]} 124. Bd5+ {[%clk 0:00:12]}  Kd3 {[%clk 0:00:14]} 125. Rf3+ {[%clk 0:00:13]}  Be3 {[%clk 0:00:14]} 126. Kd6 {[%clk 0:00:14]}  Kd4 {[%clk 0:00:14]} 127. Rh3 {[%clk 0:00:12]}  Bf4+ {[%clk 0:00:14]} 128. Ke6 {[%clk 0:00:12]}  Be3 {[%clk 0:00:14]} 129. Bc6 {[%clk 0:00:13]}  Bf2 {[%clk 0:00:13]} 130. Rh5 {[%clk 0:00:13]}  Be3 {[%clk 0:00:13]} 131. Rd5+ {[%clk 0:00:12]}  Kc4 {[%clk 0:00:14]} 132. Kf5 {[%clk 0:00:13]}  Bc5 {[%clk 0:00:12]} 133. Ke4 {[%clk 0:00:13]}  Kb4 {[%clk 0:00:13]} 134. Bd7 {[%clk 0:00:13]}  Kc4 {[%clk 0:00:12]} 135. Be6 {[%clk 0:00:13]}  Kb4 {[%clk 0:00:13]} 136. Rd7 {[%clk 0:00:14]}  Kb5 {[%clk 0:00:12]} 137. Kd5 {[%clk 0:00:14]}  Bb6 {[%clk 0:00:10]} 138. Rb7 {[%clk 0:00:13]}  Ka6 {[%clk 0:00:11]} 139. Kc6 {[%clk 0:00:12]}  Bf2 {[%clk 0:00:11]} 140. Rb5 {[%clk 0:00:10]}  Be3 {[%clk 0:00:11]} 141. Bc8+ {[%clk 0:00:10]}  Ka7 {[%clk 0:00:11]} 142. Rb7+ {[%clk 0:00:10]}  Ka8 {[%clk 0:00:10]} 143. Rf7 {[%clk 0:00:09]}  Bd4 {[%clk 0:00:10]} 144. Rf8 {[%clk 0:00:06]}  Ka7 {[%clk 0:00:10]} 145. Bb7 {[%clk 0:00:06]}  Be5 {[%clk 0:00:09]} 146. Ra8# {[%clk 0:00:06]} 1-0

[Event "December 5 Early 2023"]
[Site "https://www.chess.com"]
[Date "2023.12.05"]
[Round "4"]
[White "Yelisieiev, Yevhenii"]
[Black "Kozak, Antoni"]
[Result "1-0"]
[Board "75"]
[TimeControl "180+1"]
[WhiteFideId "14139642"]
[BlackFideId "21832030"]
[WhiteElo "2534"]
[BlackElo "2716"]
[WhiteTeam "GER"]
[BlackTeam "POL"]
[WhiteClock "0:00:18"]
[BlackClock "0:00:11"]

1. d4 {[%clk 0:03:00]}  Nf6 {[%clk 0:02:59]} 2. Nf3 {[%clk 0:03:01]}  d5 {[%clk 0:02:58]} 3. c4 {[%clk 0:03:01]}  e6 {[%clk 0:02:58]} 4. Nc3 {[%clk 0:03:02]}  Ne4 {[%clk 0:02:57]} 5. Qc2 {[%clk 0:02:38]}  Nxc3 {[%clk 0:02:57]} 6. Qxc3 {[%clk 0:02:38]}  a5 {[%clk 0:02:55]} 7. Bg5 {[%clk 0:02:37]}  Qxg5 {[%clk 0:02:48]} 8. Nxg5 {[%clk 0:02:37]}  Bb4 {[%clk 0:02:48]} 9. e3 {[%clk 0:02:28]}  Ke7 {[%clk 0:02:38]} 10. Rc1 {[%clk 0:02:25]}  Bxc3+ {[%clk 0:02:38]} 11. Rxc3 {[%clk 0:02:24]}  c6 {[%clk 0:02:28]} 12. f4 {[%clk 0:02:20]}  Nd7 {[%clk 0:02:24]} 13. c5 {[%clk 0:02:10]}  f6 {[%clk 0:02:22]} 14. Nf3 {[%clk 0:02:10]}  e5 {[%clk 0:02:22]} 15. fxe5 {[%clk 0:02:09]}  fxe5 {[%clk 0:02:23]} 16. Be2 {[%clk 0:02:03]}  e4 {[%clk 0:02:20]} 17. Nd2 {[%clk 0:01:59]}  Nf6 {[%clk 0:02:09]} 18. O-O {[%clk 0:01:53]}  a4 {[%clk 0:01:54]} 19. Bd1 {[%clk 0:01:51]}  Bg4 {[%clk 0:01:40]} 20. Rxf6 {[%clk 0:01:17]}  Bxd1 {[%clk 0:01:40]} 21. Rf2 {[%clk 0:01:13]}  Rhf8 {[%clk 0:01:35]} 22. h3 {[%clk 0:00:59]}  g5 {[%clk 0:01:30]} 23. Nf1 {[%clk 0:00:43]}  Rxf2 {[%clk 0:00:54]} 24. Kxf2 {[%clk 0:00:43]}  Rf8+ {[%clk 0:00:54]} 25. Ke1 {[%clk 0:00:43]}  Bh5 {[%clk 0:00:53]} 26. Ra3 {[%clk 0:00:41]}  Ra8 {[%clk 0:00:53]} 27. Nd2 {[%clk 0:00:37]}  Bg6 {[%clk 0:00:49]} 28. Nb1 {[%clk 0:00:32]}  Kd7 {[%clk 0:00:46]} 29. Nc3 {[%clk 0:00:32]}  Kc7 {[%clk 0:00:46]} 30. Rxa4 {[%clk 0:00:29]}  Rg8 {[%clk 0:00:38]} 31. b4 {[%clk 0:00:29]}  Bf5 {[%clk 0:00:37]} 32. b5 {[%clk 0:00:27]}  g4 {[%clk 0:00:30]} 33. h4 {[%clk 0:00:24]}  g3 {[%clk 0:00:30]} 34. bxc6 {[%clk 0:00:23]}  Kxc6 {[%clk 0:00:30]} 35. Rb4 {[%clk 0:00:22]}  Bh3 {[%clk 0:00:24]} 36. Rb6+ {[%clk 0:00:20]}  Kd7 {[%clk 0:00:22]} 37. Nxd5 {[%clk 0:00:19]}  Rg7 {[%clk 0:00:14]} 38. Nf4 {[%clk 0:00:18]}  Bg4 {[%clk 0:00:11]} 39. Rxb7+ {[%clk 0:00:18]} 1-0